bitfinex-derivatives/quotes_BTCF0:USTF0_20241227
["timestamp","ask_amount","ask_price","bid_price","bid_amount"]
[1735276982608,0.1283285,96178.0,96176.0,0.052054]
[1735276982994,0.21650783,96177.0,96176.0,0.052054]
[1735276983708,0.21850783,96177.0,96176.0,0.052054]
[1735276983909,0.22050783,96177.0,96176.0,0.052054]
[1735276985599,0.52050783,96177.0,96153.0,0.05362589]
[1735276985898,0.52050783,96177.0,96137.0,0.31196101]
[1735276985899,0.052065,96156.0,96145.0,0.05207]
[1735276986098,0.1488,96155.0,96145.0,0.05207]
[1735276986309,0.05207,96146.0,96137.0,0.36403601]
[1735276986515,0.05207,96146.0,96139.0,0.31196101]
[1735276986706,0.09221463,96145.0,96139.0,0.31196101]
[1735276986903,0.09221463,96145.0,96131.0,0.37467392]
[1735276987104,0.052075,96138.0,96131.0,0.42619192]
[1735276987606,0.09331365,96137.0,96131.0,0.42619192]
[1735276987806,0.09331365,96137.0,96131.0,0.052078]
[1735276988219,0.09331365,96137.0,96131.0,0.057078]
[1735276988514,0.09331365,96137.0,96131.0,0.060078]
[1735276989105,0.15541063,96134.0,96131.0,0.060078]
[1735276989514,0.09199019,96133.0,96131.0,0.060078]
[1735276990111,0.09199019,96133.0,96131.0,0.057078]
[1735276990312,0.09199019,96133.0,96131.0,0.056078]
[1735276990612,0.073,96137.0,96131.0,0.056078]
[1735276990918,0.09356381,96136.0,96131.0,0.056078]
[1735276991314,0.073,96137.0,96131.0,0.056078]
[1735276991511,0.12346483,96133.0,96131.0,0.056078]
[1735276991915,0.09232237,96132.0,96131.0,0.052078]
[1735276992111,0.09232237,96132.0,96131.0,0.056078]
[1735276992713,0.09232237,96132.0,96131.0,0.058078]
[1735276993418,0.12346483,96136.0,96135.0,0.052076]
[1735276993812,0.2155007,96136.0,96135.0,0.052076]
[1735276994621,0.09203587,96136.0,96135.0,0.056076]
[1735276994916,0.00930043,96150.0,96135.0,0.056076]
[1735276995108,0.09232127,96149.0,96135.0,0.056076]
[1735276995314,0.05207,96146.0,96136.0,0.052075]
[1735276995814,0.09350406,96145.0,96136.0,0.052075]
[1735276996018,0.09350406,96145.0,96136.0,0.129775]
[1735276996826,0.09350406,96145.0,96136.0,0.054075]
[1735276997414,0.09350406,96145.0,96140.0,0.052073]
[1735276999113,0.052073,96141.0,96140.0,0.001]
[1735276999527,0.14397957,96141.0,96140.0,0.001]
[1735277000323,0.052076,96135.0,96132.0,0.0744]
[1735277000729,0.09253472,96134.0,96132.0,0.0744]
[1735277001439,0.09253472,96134.0,96132.0,0.0774]
[1735277002739,0.09253472,96134.0,96132.0,0.0794]
[1735277003344,0.09253472,96134.0,96132.0,0.0774]
[1735277003542,0.09253472,96134.0,96132.0,0.0794]
[1735277004233,0.14461172,96134.0,96132.0,0.0794]
[1735277004632,0.052077,96134.0,96132.0,0.0794]
[1735277005031,0.0920566,96133.0,96132.0,0.0794]
[1735277006441,0.0920566,96133.0,96132.0,0.0764]
[1735277006741,0.0920566,96133.0,96132.0,0.0794]
[1735277011143,0.0920566,96133.0,96132.0,0.005]
[1735277013332,0.052083,96122.0,96121.0,0.02595601]
[1735277013531,0.10413142,96131.0,96102.0,0.0764]
[1735277013733,0.052091,96108.0,96102.0,0.0764]
[1735277014538,0.052091,96108.0,96102.0,0.1517]
[1735277014740,0.052091,96108.0,96104.0,0.009]
[1735277016449,0.053091,96108.0,96104.0,0.009]
[1735277016744,0.12348055,96107.0,96105.0,0.0771]
[1735277017337,0.052092,96106.0,96105.0,0.0771]
[1735277020038,0.052093,96103.0,96084.0,0.052103]
[1735277020237,0.052093,96103.0,96085.0,0.0755]
[1735277020445,0.09274204,96102.0,96085.0,0.0755]
[1735277021147,0.052098,96094.0,96085.0,0.0755]
[1735277021545,0.14472668,96094.0,96085.0,0.0755]
[1735277022545,0.14472668,96094.0,96084.0,0.154]
[1735277022735,0.14472668,96094.0,96084.0,0.0763]
[1735277023239,0.14472668,96094.0,96093.0,0.00508618]
[1735277023440,0.26792592,96094.0,96093.0,0.00508618]
[1735277026149,0.26792592,96094.0,96093.0,8.618e-05]
[1735277026344,0.26792592,96094.0,96093.0,0.00108618]
[1735277026536,0.27728517,96094.0,96093.0,0.00108618]
[1735277026741,0.28128517,96094.0,96093.0,8.618e-05]
[1735277027452,0.28228517,96094.0,96093.0,8.618e-05]
[1735277029153,0.28228517,96094.0,96084.0,0.0763]
[1735277029154,0.052103,96085.0,96084.0,0.0763]
[1735277029543,0.14375788,96085.0,96084.0,0.0763]
[1735277032854,0.26695712,96085.0,96084.0,0.0763]
[1735277034353,0.14375788,96085.0,96084.0,0.0763]
[1735277039359,0.29916851,96085.0,96084.0,0.0763]
[1735277040453,0.19978606,96085.0,96084.0,0.0763]
[1735277041655,0.14375788,96085.0,96084.0,0.0763]
[1735277042760,0.19978606,96085.0,96084.0,0.0763]
[1735277043958,0.052109,96072.0,96071.0,0.0726]
[1735277044367,0.14510598,96072.0,96071.0,0.0726]
[1735277044559,0.14510598,96072.0,96064.0,0.0719]
[1735277044560,0.052113,96065.0,96064.0,0.0719]
[1735277044957,0.14470635,96065.0,96064.0,0.0719]
[1735277046253,0.14470635,96065.0,96064.0,0.0809]
[1735277046254,0.14570635,96065.0,96064.0,0.0809]
[1735277046957,0.14670635,96065.0,96064.0,0.0809]
[1735277048264,0.20076999,96065.0,96064.0,0.0719]
[1735277048455,0.20176999,96065.0,96064.0,0.0779]
[1735277049259,0.20176999,96065.0,96064.0,0.006]
[1735277049971,0.2113735,96065.0,96064.0,0.006]
[1735277051065,0.2123735,96065.0,96064.0,0.006]
[1735277051674,0.2123735,96065.0,96058.0,0.0738]
[1735277051675,0.052115,96062.0,96058.0,0.0738]
[1735277052168,0.09335122,96061.0,96058.0,0.0738]
[1735277052372,0.15415899,96060.0,96058.0,0.0738]
[1735277052767,0.09164272,96059.0,96058.0,0.0738]
[1735277054075,0.0917521,96060.0,96058.0,0.0738]
[1735277054465,0.13211109,96061.0,96058.0,0.0738]
[1735277054771,0.01731109,96061.0,96059.0,0.052116]
[1735277054974,0.09180106,96060.0,96059.0,0.052116]
[1735277055175,0.01731109,96061.0,96059.0,0.052116]
[1735277055377,0.09280106,96060.0,96059.0,0.052116]
[1735277055877,0.02583185,96063.0,96062.0,0.052115]
[1735277056079,0.0097442,96070.0,96064.0,0.052113]
[1735277056265,0.18572665,96074.0,96064.0,0.052113]
[1735277056465,0.09303861,96069.0,96064.0,0.052113]
[1735277056884,0.14542255,96073.0,96064.0,0.052113]
[1735277056885,0.07594686,96072.0,96064.0,0.052113]
[1735277057064,0.07594686,96072.0,96066.0,0.052112]
[1735277057271,0.052109,96073.0,96066.0,0.052112]
[1735277057677,0.09347833,96072.0,96066.0,0.052112]
[1735277057880,0.09447833,96072.0,96066.0,0.052112]
[1735277058385,0.09447833,96072.0,96061.0,0.052115]
[1735277058583,0.09447833,96072.0,96065.0,0.052113]
[1735277059277,0.09255032,96067.0,96065.0,0.052113]
[1735277059673,0.09211204,96066.0,96065.0,0.052113]
[1735277061783,0.09211204,96066.0,96065.0,0.059113]
[1735277062273,0.09211204,96066.0,96065.0,0.052113]
[1735277062485,0.09211204,96066.0,96065.0,0.057113]
[1735277063791,0.09337008,96069.0,96067.0,0.052112]
[1735277063989,0.09211204,96068.0,96067.0,0.052112]
[1735277064186,0.052105,96080.0,96065.0,0.005]
[1735277064383,0.052107,96076.0,96073.0,0.052108]
[1735277064587,0.052107,96076.0,96065.0,0.005]
[1735277064588,0.052107,96076.0,96074.0,0.0703]
[1735277064893,0.07753143,96075.0,96074.0,0.0703]
[1735277065095,0.15013143,96075.0,96074.0,0.0703]
[1735277066193,0.15013143,96075.0,96074.0,0.0713]
[1735277066393,0.052109,96074.0,96060.0,0.10413142]
[1735277066691,0.15013143,96075.0,96060.0,0.10413142]
[1735277066692,0.052109,96072.0,96060.0,0.15624742]
[1735277066994,0.052118,96057.0,96055.0,0.24960921]
[1735277067182,0.0728,96056.0,96054.0,0.05402284]
[1735277067491,0.052119,96055.0,96054.0,0.05402284]
[1735277067894,0.14536605,96055.0,96054.0,0.05402284]
[1735277068093,0.14536605,96055.0,96054.0,0.03735729]
[1735277068399,0.052122,96048.0,96047.0,0.3066363]
[1735277068788,0.052122,96048.0,96040.0,0.37475392]
[1735277068789,0.09166171,96048.0,96040.0,0.00064]
[1735277069097,0.052132,96031.0,96018.0,0.052138]
[1735277069497,0.052132,96031.0,96022.0,0.0691]
[1735277069686,0.09166171,96030.0,96022.0,0.0691]
[1735277071003,0.14379371,96030.0,96022.0,0.0691]
[1735277071188,0.001,96031.0,96022.0,0.0691]
[1735277071490,0.09254133,96029.0,96022.0,0.0781]
[1735277071690,0.052134,96027.0,96022.0,0.0781]
[1735277072096,0.0934123,96026.0,96022.0,0.0691]
[1735277072391,0.0934123,96029.0,96024.0,0.052135]
[1735277072794,0.053132,96031.0,96024.0,0.052135]
[1735277072986,0.052132,96031.0,96024.0,0.052135]
[1735277073187,0.09229545,96029.0,96024.0,0.052135]
[1735277073495,0.052132,96031.0,96022.0,0.0731]
[1735277073997,0.09190686,96028.0,96022.0,0.0731]
[1735277074493,0.052132,96031.0,96022.0,0.0731]
[1735277074698,0.052132,96031.0,96024.0,0.003]
[1735277074898,0.09347616,96028.0,96026.0,0.052134]
[1735277075089,0.09347616,96030.0,96026.0,0.052134]
[1735277075481,0.052132,96031.0,96026.0,0.052134]
[1735277075888,0.09249762,96030.0,96026.0,0.052134]
[1735277076083,0.09249762,96030.0,96028.0,0.052133]
[1735277076291,0.09249815,96040.0,96039.0,0.052127]
[1735277076694,0.18495521,96040.0,96039.0,0.052127]
[1735277076892,0.09245706,96040.0,96039.0,0.052127]
[1735277077194,0.09245706,96040.0,96030.0,0.10413142]
[1735277077195,0.09249815,96045.0,96030.0,0.10413142]
[1735277077496,0.09245706,96044.0,96042.0,0.052125]
[1735277077801,0.09249815,96045.0,96042.0,0.052125]
[1735277078187,0.09225519,96043.0,96042.0,0.052125]
[1735277078589,0.052127,96039.0,96032.0,0.052131]
[1735277078890,0.09172899,96038.0,96022.0,0.0691]
[1735277079095,0.09172899,96038.0,96022.0,0.07862178]
[1735277079289,0.09172899,96039.0,96034.0,0.05213]
[1735277079490,0.09172899,96039.0,96036.0,0.052129]
[1735277079892,0.052128,96038.0,96022.0,0.07862178]
[1735277080090,0.0921072,96041.0,96022.0,0.07862178]
[1735277080285,0.0921072,96037.0,96022.0,0.07862178]
[1735277080690,0.002,96045.0,96030.0,0.052132]
[1735277080691,0.052129,96036.0,96030.0,0.052132]
[1735277080894,0.052129,96036.0,96022.0,0.07862178]
[1735277081096,0.09230591,96035.0,96031.0,0.052131]
[1735277081897,0.14443591,96035.0,96031.0,0.052131]
[1735277082301,0.05213,96035.0,96031.0,0.054131]
[1735277082694,0.09221532,96034.0,96031.0,0.054131]
[1735277082904,0.052131,96033.0,96031.0,0.054131]
[1735277083401,0.09221532,96032.0,96031.0,0.054131]
[1735277085594,0.052131,96033.0,96031.0,0.054131]
[1735277087189,0.09251202,96032.0,96031.0,0.054131]
[1735277088193,0.09251202,96032.0,96031.0,0.052131]
[1735277088393,0.09251202,96032.0,96031.0,0.054131]
[1735277090596,0.09251202,96032.0,96031.0,0.002]
[1735277091794,0.052132,96031.0,96025.0,0.052135]
[1735277091993,0.052132,96031.0,96027.0,0.052134]
[1735277092194,0.09216866,96030.0,96027.0,0.052134]
[1735277092703,0.14430066,96030.0,96027.0,0.052134]
[1735277093095,0.052132,96030.0,96027.0,0.052134]
[1735277093295,0.09248333,96029.0,96027.0,0.052134]
[1735277093898,0.09248333,96029.0,96027.0,0.054134]
[1735277094504,0.09248333,96029.0,96027.0,0.002]
[1735277094706,0.052133,96028.0,96027.0,0.002]
[1735277095107,0.14471325,96028.0,96027.0,0.002]
[1735277096392,0.14471325,96028.0,96027.0,0.001]
[1735277097606,0.09258025,96028.0,96027.0,0.053134]
[1735277098109,0.09164571,96030.0,96028.0,0.052133]
[1735277098304,0.15389003,96031.0,96029.0,0.01139672]
[1735277098500,0.15389003,96031.0,96030.0,0.06352872]
[1735277098902,0.2460313,96031.0,96030.0,0.06352872]
[1735277099100,0.09214127,96031.0,96030.0,0.052132]
[1735277099302,0.09214127,96031.0,96030.0,0.06352875]
[1735277099504,0.09265678,96032.0,96030.0,0.06352875]
[1735277099707,0.09265678,96032.0,96030.0,0.052132]
[1735277099912,0.09265678,96032.0,96031.0,0.0113956]
[1735277100420,0.18546603,96032.0,96031.0,0.0113956]
[1735277101515,0.09280925,96032.0,96031.0,0.0113956]
[1735277101913,0.09304661,96038.0,96031.0,0.0113956]
[1735277102113,0.09304661,96038.0,96032.0,0.0113956]
[1735277102316,0.124528,96039.0,96033.0,0.0113956]
[1735277102513,0.124528,96039.0,96030.0,0.052132]
[1735277102514,0.124528,96039.0,96034.0,0.0113956]
[1735277102700,0.09206933,96038.0,96035.0,0.0113956]
[1735277102905,0.09206933,96038.0,96036.0,0.0635246]
[1735277103216,0.09206933,96038.0,96037.0,0.0113956]
[1735277103717,0.09206933,96041.0,96040.0,0.052127]
[1735277103916,0.09206933,96041.0,96040.0,0.0635226]
[1735277104108,0.15389003,96044.0,96042.0,0.052125]
[1735277104304,0.15389003,96044.0,96043.0,0.01146043]
[1735277104809,0.24588194,96044.0,96043.0,0.01146043]
[1735277105202,0.09199191,96044.0,96043.0,0.01146043]
[1735277105615,0.09199191,96052.0,96043.0,0.01146043]
[1735277105816,0.09199191,96052.0,96044.0,0.01146043]
[1735277106001,0.052123,96047.0,96045.0,0.01146043]
[1735277106205,0.09244908,96053.0,96046.0,0.01146043]
[1735277106514,0.15389003,96051.0,96047.0,0.01146043]
[1735277106711,0.15389003,96051.0,96048.0,0.01146043]
[1735277106912,0.09267533,96050.0,96049.0,0.01146043]
[1735277107710,0.09267533,96050.0,96049.0,0.06358243]
[1735277108515,0.0932724,96051.0,96050.0,0.052121]
[1735277108811,0.005,96053.0,96050.0,0.01146043]
[1735277109007,0.15389003,96055.0,96052.0,0.05212]
[1735277109317,0.15389003,96055.0,96053.0,0.01146043]
[1735277109522,0.15389003,96055.0,96054.0,0.01146043]
[1735277109814,0.09328696,96055.0,96054.0,0.01146043]
[1735277110211,0.0926591,96056.0,96054.0,0.01146043]
[1735277110517,0.0926591,96056.0,96055.0,0.01146043]
[1735277110703,0.0926591,96056.0,96055.0,0.01148243]
[1735277110907,0.18434452,96056.0,96055.0,0.01148243]
[1735277111108,0.09168542,96056.0,96055.0,0.01148243]
[1735277111506,0.09168542,96057.0,96055.0,0.01148243]
[1735277111710,0.09168542,96057.0,96056.0,0.01148243]
[1735277112010,0.052117,96058.0,96056.0,0.01148243]
[1735277112210,0.052117,96058.0,96057.0,0.01148243]
[1735277112603,0.14547282,96058.0,96057.0,0.01148243]
[1735277113409,0.14747282,96058.0,96057.0,0.01148243]
[1735277113813,0.09535582,96058.0,96057.0,0.01148243]
[1735277115614,0.002,96058.0,96057.0,0.01148243]
[1735277115814,0.15389003,96067.0,96057.0,0.01148243]
[1735277115815,0.15389003,96067.0,96066.0,0.052113]
[1735277116011,0.15389003,96067.0,96066.0,0.06362392]
[1735277116224,0.24694734,96067.0,96066.0,0.06362392]
[1735277116526,0.09305731,96067.0,96066.0,0.06362392]
[1735277116913,0.09284462,96071.0,96066.0,0.06362392]
[1735277117114,0.09284462,96071.0,96067.0,0.01151092]
[1735277117416,0.052111,96069.0,96068.0,0.01151092]
[1735277117817,0.14561107,96069.0,96068.0,0.01151092]
[1735277119016,0.14561107,96069.0,96061.0,0.052115]
[1735277119321,0.15061107,96069.0,96062.0,0.01149777]
[1735277119519,0.15061107,96069.0,96061.0,0.052115]
[1735277119713,0.15061107,96069.0,96062.0,0.01150084]
[1735277119910,0.15061107,96069.0,96063.0,0.01150084]
[1735277120113,0.15061107,96069.0,96064.0,0.01150084]
[1735277120419,0.24010747,96069.0,96065.0,0.01150084]
[1735277120622,0.24210747,96069.0,96066.0,0.01150084]
[1735277120813,0.24210747,96069.0,96067.0,0.01150084]
[1735277121013,0.24210747,96069.0,96068.0,0.01150084]
[1735277121212,0.24010747,96069.0,96068.0,0.01150084]
[1735277121421,0.18899647,96069.0,96068.0,0.01150239]
[1735277121608,0.14861107,96069.0,96068.0,0.01150239]
[1735277121814,0.14661107,96069.0,96068.0,0.01150239]
[1735277122013,0.14861107,96069.0,96068.0,0.01150239]
[1735277122223,0.14861107,96069.0,96068.0,0.01150204]
[1735277122224,0.15061107,96069.0,96068.0,0.01150204]
[1735277122723,0.14761107,96069.0,96068.0,0.01150204]
[1735277122924,0.15261107,96069.0,96068.0,0.01150204]
[1735277124813,0.10050007,96069.0,96068.0,0.06361404]
[1735277128722,0.10050007,96069.0,96068.0,0.052112]
[1735277128929,0.10050007,96069.0,96068.0,0.06360638]
[1735277129816,0.10050007,96069.0,96068.0,0.052112]
[1735277130014,0.10050007,96069.0,96068.0,0.0636074]
[1735277130723,0.007,96069.0,96068.0,0.06360775]
[1735277132120,0.007,96069.0,96068.0,0.07333156]
[1735277132524,0.092487,96077.0,96068.0,0.01149575]
[1735277132728,0.092487,96077.0,96075.0,0.052107]
[1735277132931,0.092487,96077.0,96076.0,0.01149575]
[1735277133328,0.18485939,96077.0,96076.0,0.01149575]
[1735277133633,0.09237239,96077.0,96076.0,0.01149575]
[1735277134334,0.09337239,96077.0,96076.0,0.01149322]
[1735277137421,0.09337239,96077.0,96075.0,0.052107]
[1735277137627,0.09337239,96077.0,96076.0,0.01149844]
[1735277137825,0.09337239,96077.0,96076.0,0.01150081]
[1735277141737,0.21676465,96077.0,96076.0,0.01150081]
[1735277143035,0.09337239,96077.0,96076.0,0.01150081]
[1735277143432,0.09337239,96077.0,96075.0,0.052107]
[1735277143636,0.09337239,96077.0,96076.0,0.01150419]
[1735277144632,0.09337239,96077.0,96076.0,0.09330419]
[1735277145537,0.09337239,96077.0,96076.0,0.10284244]
[1735277146442,0.09337239,96077.0,96076.0,0.09133825]
[1735277146741,0.09337239,96077.0,96076.0,0.10279303]
[1735277147141,0.09337239,96077.0,96076.0,0.1027914]
[1735277149637,0.09337239,96077.0,96076.0,0.10281423]
[1735277151242,0.09337239,96077.0,96076.0,0.02101423]
[1735277155636,0.09337239,96077.0,96076.0,0.02098192]
[1735277157839,0.09337239,96077.0,96076.0,0.2703046]
[1735277161044,0.09337239,96077.0,96076.0,0.27030419]
[1735277161247,0.09337239,96077.0,96076.0,0.02096466]
[1735277164348,0.09337239,96077.0,96076.0,0.02096391]
[1735277164544,0.09337239,96077.0,96076.0,0.01142566]
[1735277166747,0.09337239,96077.0,96076.0,0.01142942]
[1735277172149,0.24967239,96077.0,96076.0,0.01142942]
[1735277172862,0.24967239,96077.0,96076.0,0.01142467]
[1735277174748,0.37338158,96077.0,96076.0,0.01142467]
[1735277175152,0.37338158,96077.0,96075.0,0.052107]
[1735277175455,0.0771,96076.0,96075.0,0.052107]
[1735277175654,0.0771,96076.0,96075.0,0.06353257]
[1735277175853,0.16914909,96076.0,96075.0,0.06353257]
[1735277177861,0.17014909,96076.0,96075.0,0.06353257]
[1735277178758,0.052109,96074.0,96070.0,0.24980786]
[1735277178962,0.05211,96072.0,96070.0,0.00480786]
[1735277179263,0.09259667,96071.0,96068.0,0.052111]
[1735277179658,0.052111,96070.0,96068.0,0.052111]
[1735277180056,0.09344173,96069.0,96068.0,0.052111]
[1735277181056,0.09344173,96069.0,96068.0,0.054111]
[1735277181257,0.09344173,96069.0,96068.0,0.002]
[1735277181466,0.24733176,96069.0,96058.0,0.052117]
[1735277181658,0.052113,96065.0,96058.0,0.052117]
[1735277182054,0.09245877,96064.0,96058.0,0.052117]
[1735277182260,0.0927443,96059.0,96058.0,0.052117]
[1735277182660,0.18520307,96059.0,96058.0,0.052117]
[1735277183860,0.09245877,96059.0,96058.0,0.052117]
[1735277184260,0.1507,96059.0,96058.0,0.052117]
[1735277184667,0.24426727,96059.0,96058.0,0.052117]
[1735277187063,0.09356727,96059.0,96058.0,0.052117]
[1735277187458,0.0927443,96062.0,96061.0,0.052116]
[1735277187658,0.0927443,96066.0,96065.0,0.052113]
[1735277188164,0.18624028,96066.0,96065.0,0.052113]
[1735277188971,0.09349598,96066.0,96065.0,0.052113]
[1735277189358,0.09318179,96070.0,96069.0,0.052111]
[1735277189670,0.0927443,96071.0,96069.0,0.052111]
[1735277189859,0.0927443,96074.0,96059.0,0.2258]
[1735277190065,0.0927443,96074.0,96073.0,0.052109]
[1735277190362,0.18452181,96074.0,96073.0,0.052109]
[1735277190764,0.18452181,96074.0,96073.0,0.06348383]
[1735277190967,0.09177751,96074.0,96073.0,0.06348383]
[1735277191370,0.12365907,96078.0,96074.0,0.052109]
[1735277191371,0.09357792,96077.0,96074.0,0.052109]
[1735277191571,0.09357792,96077.0,96076.0,0.052107]
[1735277191875,0.12365907,96078.0,96076.0,0.06347532]
[1735277192071,0.12365907,96078.0,96077.0,0.01136832]
[1735277192576,0.21684786,96078.0,96077.0,0.01136832]
[1735277193372,0.09318879,96078.0,96077.0,0.01136832]
[1735277193766,0.09518879,96078.0,96077.0,0.01136832]
[1735277194163,0.09518879,96078.0,96076.0,0.052107]
[1735277195464,0.12364756,96077.0,96076.0,0.052107]
[1735277195961,0.21627839,96077.0,96076.0,0.052107]
[1735277196679,0.09263083,96077.0,96076.0,0.052107]
[1735277197776,0.09363083,96077.0,96076.0,0.052107]
[1735277197971,0.05211,96072.0,96067.0,0.052112]
[1735277198474,0.09225101,96071.0,96067.0,0.052112]
[1735277199368,0.09225101,96071.0,96060.0,0.11423973]
[1735277199674,0.09225101,96071.0,96068.0,0.052112]
[1735277200070,0.09225101,96071.0,96070.0,0.052111]
[1735277200468,0.09209556,96074.0,96068.0,0.052112]
[1735277200668,0.09209556,96074.0,96073.0,0.052109]
[1735277200863,0.15389003,96075.0,96073.0,0.052109]
[1735277201063,0.16398649,96077.0,96076.0,0.052107]
[1735277201265,0.15389003,96077.0,96076.0,0.052107]
[1735277201467,0.24706647,96077.0,96076.0,0.052107]
[1735277202176,0.09317644,96077.0,96076.0,0.052107]
[1735277202677,0.15389003,96078.0,96076.0,0.052107]
[1735277203170,0.09311867,96077.0,96076.0,0.052107]
[1735277203579,0.09411867,96077.0,96076.0,0.052107]
[1735277204083,0.09211867,96077.0,96076.0,0.052107]
[1735277204771,0.2470087,96077.0,96076.0,0.052107]
[1735277205276,0.15489003,96077.0,96076.0,0.052107]
[1735277205673,0.24713729,96077.0,96076.0,0.052107]
[1735277207376,0.15004733,96077.0,96076.0,0.052107]
[1735277208780,0.09324726,96077.0,96076.0,0.052107]
[1735277209982,0.15004733,96077.0,96076.0,0.052107]
[1735277211279,0.24805264,96077.0,96076.0,0.052107]
[1735277211577,0.24805264,96077.0,96076.0,0.050107]
[1735277212674,0.09324726,96077.0,96076.0,0.050107]
[1735277215171,0.15007701,96077.0,96076.0,0.050107]
[1735277215979,0.052112,96074.0,96066.0,0.052116]
[1735277216177,0.052115,96069.0,96066.0,0.052116]
[1735277216383,0.0926321,96073.0,96066.0,0.052116]
[1735277216572,0.052116,96066.0,96061.0,0.052119]
[1735277216777,0.052116,96066.0,96060.0,0.10413142]
[1735277216980,0.0926321,96065.0,96062.0,0.052118]
[1735277219484,0.24752017,96065.0,96062.0,0.055118]
[1735277219875,0.24752017,96065.0,96062.0,0.052118]
[1735277220182,0.24752017,96065.0,96062.0,0.053118]
[1735277220381,0.24752017,96065.0,96062.0,0.001]
[1735277220582,0.24752017,96065.0,96064.0,0.052117]
[1735277220777,0.0926321,96065.0,96064.0,0.052117]
[1735277222076,0.24739349,96065.0,96064.0,0.052117]
[1735277223185,0.0936321,96065.0,96064.0,0.052117]
[1735277233990,0.15033521,96065.0,96064.0,0.052117]
[1735277234391,0.15033521,96065.0,96057.0,0.0829]
[1735277234884,0.15033521,96065.0,96064.0,0.052117]
[1735277235090,0.0936321,96065.0,96064.0,0.052117]
[1735277235795,0.0926321,96065.0,96064.0,0.052117]
[1735277236291,0.09332044,96069.0,96067.0,0.052116]
[1735277236497,0.15476212,96068.0,96067.0,0.052116]
[1735277236995,0.24808256,96068.0,96067.0,0.052116]
[1735277239093,0.12378256,96068.0,96067.0,0.052116]
[1735277239488,0.12578256,96068.0,96067.0,0.052116]
[1735277239998,0.09532044,96068.0,96067.0,0.052116]
[1735277240388,0.09332044,96068.0,96067.0,0.052116]
[1735277240589,0.09432044,96068.0,96067.0,0.052116]
[1735277240801,0.001,96068.0,96067.0,0.0621038]
[1735277241403,0.0939831,96068.0,96067.0,0.052116]
[1735277246397,0.052116,96067.0,96059.0,0.05212]
[1735277246600,0.0939831,96068.0,96059.0,0.05212]
[1735277246799,0.052119,96061.0,96059.0,0.05212]
[1735277247098,0.09217902,96060.0,96059.0,0.05212]
[1735277248194,0.09217902,96060.0,96059.0,0.05512]
[1735277249291,0.09217902,96060.0,96059.0,0.05412]
[1735277249895,0.09217902,96060.0,96059.0,0.05212]
[1735277252411,0.09317902,96060.0,96059.0,0.05212]
[1735277262112,0.18499631,96071.0,96070.0,0.052114]
[1735277263322,0.052101,96094.0,96070.0,0.052114]
[1735277263323,0.18499631,96082.0,96070.0,0.052114]
[1735277263507,0.18499631,96082.0,96081.0,0.052108]
[1735277263909,0.27785416,96082.0,96081.0,0.052108]
[1735277264819,0.09285785,96082.0,96081.0,0.052108]
[1735277265215,0.009,96082.0,96081.0,0.053108]
[1735277265615,0.10065185,96082.0,96081.0,0.053108]
[1735277272313,0.09365185,96082.0,96081.0,0.053108]
[1735277273222,0.09165185,96082.0,96081.0,0.054108]
[1735277273621,0.09236779,96083.0,96082.0,0.052104]
[1735277273921,0.1030099,96099.0,96082.0,0.052104]
[1735277274227,0.1030099,96099.0,96089.0,0.15627541]
[1735277274524,0.09294069,96098.0,96090.0,0.1549]
[1735277274721,0.09294069,96098.0,96097.0,0.052096]
[1735277275720,0.09553919,96099.0,96097.0,0.052096]
[1735277276119,0.002,96099.0,96097.0,0.052096]
[1735277276527,0.09236308,96098.0,96097.0,0.052096]
[1735277276728,0.09436308,96098.0,96097.0,0.052096]
[1735277277223,0.10036308,96098.0,96080.0,0.10417541]
[1735277277524,0.076,96097.0,96083.0,0.052103]
[1735277277823,0.076,96097.0,96080.0,0.10417541]
[1735277277824,0.0521,96090.0,96085.0,0.052102]
[1735277278220,0.09233839,96089.0,96085.0,0.052102]
[1735277278516,0.09233839,96089.0,96086.0,0.052102]
[1735277278719,0.09233839,96089.0,96087.0,0.052101]
[1735277280327,0.09333839,96089.0,96087.0,0.052101]
[1735277284628,0.22243839,96089.0,96087.0,0.052101]
[1735277285230,0.31523499,96089.0,96087.0,0.052101]
[1735277286619,0.22243839,96089.0,96087.0,0.052101]
[1735277286830,0.23253795,96089.0,96087.0,0.052101]
[1735277287628,0.18043795,96089.0,96070.0,0.25907541]
[1735277288829,0.052103,96084.0,96078.0,0.052105]
[1735277289025,0.1448488,96084.0,96070.0,0.26007541]
[1735277289232,0.09365319,96083.0,96079.0,0.052105]
[1735277290533,0.0927458,96080.0,96079.0,0.052105]
[1735277290926,0.1846087,96080.0,96079.0,0.054105]
[1735277291634,0.0918629,96080.0,96079.0,0.054105]
[1735277291928,0.17591373,96084.0,96079.0,0.055105]
[1735277292134,0.09192778,96083.0,96079.0,0.055105]
[1735277292319,0.17591373,96084.0,96079.0,0.003]
[1735277292523,0.09295446,96083.0,96079.0,0.003]
[1735277292727,0.12381073,96081.0,96080.0,0.052105]
[1735277293135,0.21676519,96081.0,96080.0,0.052105]
[1735277294034,0.21676519,96081.0,96080.0,0.054105]
[1735277294827,0.09295446,96081.0,96080.0,0.055105]
[1735277295228,0.09338606,96083.0,96080.0,0.055105]
[1735277295430,0.052103,96084.0,96080.0,0.055105]
[1735277295827,0.09335751,96083.0,96080.0,0.055105]
[1735277298523,0.09335751,96083.0,96081.0,0.052104]
[1735277299826,0.09335751,96083.0,96081.0,0.053104]
[1735277300143,0.09335751,96083.0,96081.0,0.054104]
[1735277306137,0.09214712,96088.0,96087.0,0.052101]
[1735277306640,0.1545426,96089.0,96087.0,0.052101]
[1735277307032,0.0930536,96088.0,96087.0,0.052101]
[1735277307737,0.2066416,96090.0,96087.0,0.052101]
[1735277307945,0.09190682,96089.0,96087.0,0.052101]
[1735277308133,0.2066416,96090.0,96087.0,0.052101]
[1735277308334,0.001,96088.0,96087.0,0.052101]
[1735277308837,0.09320357,96088.0,96087.0,0.052101]
[1735277309238,0.09320357,96089.0,96087.0,0.052101]
[1735277309445,0.001,96088.0,96087.0,0.052101]
[1735277309842,0.001,96088.0,96080.0,0.052104]
[1735277309843,0.052102,96086.0,96080.0,0.052104]
[1735277310041,0.052102,96085.0,96080.0,0.052104]
[1735277310345,0.052104,96082.0,96080.0,0.052104]
[1735277310745,0.09239561,96081.0,96080.0,0.052104]
[1735277311443,0.09239561,96081.0,96080.0,0.053104]